bitfinex/quotes_ETHUSD_20250720
["timestamp","ask_amount","ask_price","bid_price","bid_amount"]
[1753011359237,33.78204869,3720.3,3720.2,3.001]
[1753011359437,28.29,3720.3,3720.2,3.001]
[1753011359942,28.51652457,3720.3,3720.2,34.03587686]
[1753011360441,28.51652457,3720.3,3720.2,5.89035586]
[1753011360656,28.51652457,3720.3,3720.2,20.08530698]
[1753011360837,28.31371458,3720.3,3720.2,38.1792935]
[1753011361042,28.31371458,3720.3,3720.2,37.15735638]
[1753011361227,29.54371458,3720.3,3720.2,37.15735638]
[1753011361556,29.54371458,3720.3,3720.2,37.70735638]
[1753011362060,29.54371458,3720.3,3720.2,39.12838338]
[1753011362276,29.54371458,3720.3,3720.2,40.45119576]
[1753011362422,29.54371458,3720.3,3720.2,40.74629232]
[1753011362738,30.77371458,3720.3,3720.2,38.61712408]
[1753011363121,30.77371458,3720.3,3720.2,37.41145208]
[1753011363350,30.77371458,3720.3,3720.2,29.56450008]
[1753011363970,30.77371458,3720.3,3720.2,34.39016056]
[1753011364167,32.00371458,3720.3,3720.2,29.402645]
[1753011364378,32.00371458,3720.3,3720.2,28.852645]
[1753011364579,32.00371458,3720.3,3720.2,15.89183]
[1753011364877,32.00371458,3720.3,3720.2,7.601088]
[1753011365059,32.00371458,3720.3,3720.2,10.055333]
[1753011365248,32.00371458,3720.3,3720.2,13.055333]
[1753011365439,33.23371458,3720.3,3720.2,10.055333]
[1753011365639,33.23371458,3720.3,3720.2,13.055333]
[1753011365848,33.23371458,3720.3,3720.2,13.188933]
[1753011366052,33.23371458,3720.3,3720.2,21.288777]
[1753011366273,33.23371458,3720.3,3720.2,17.074866]
[1753011366486,33.23371458,3720.3,3720.2,14.124576]
[1753011366779,33.23371458,3720.3,3720.2,3.934086]
[1753011366974,34.46371458,3720.3,3720.2,0.001]
[1753011367182,34.46371458,3720.3,3720.2,2.260114]
[1753011368040,34.46371458,3720.3,3720.2,10.748674]
[1753011368244,34.46371458,3720.3,3720.2,4.120347]
[1753011368552,35.69371458,3720.3,3720.2,0.001]
[1753011368758,35.69371458,3720.3,3720.2,5.304589]
[1753011368978,35.69371458,3720.3,3720.2,8.874589]
[1753011369282,35.82731458,3720.3,3720.2,8.874589]
[1753011369682,37.05731458,3720.3,3720.2,8.874589]
[1753011369992,37.05731458,3720.3,3720.2,20.896642]
[1753011370199,37.05731458,3720.3,3720.2,18.276223]
[1753011370512,37.05731458,3720.3,3720.2,18.734123]
[1753011370795,36.92371458,3720.3,3720.2,20.86261288]
[1753011370992,36.92371458,3720.3,3720.2,35.58738988]
[1753011371193,38.15371458,3720.3,3720.2,35.58738988]
[1753011371363,38.15371458,3720.3,3720.2,28.31973388]
[1753011372087,38.15371458,3720.3,3720.2,29.165334]
[1753011372290,38.15371458,3720.3,3720.2,24.742665]
[1753011372683,39.38371458,3720.3,3720.2,24.742665]
[1753011372980,34.67988315,3720.3,3720.2,35.6047]
[1753011373163,1.23,3721.0,3720.9,7.83332183]
[1753011373366,1.23,3721.0,3720.9,8.12841839]
[1753011373901,1.23,3721.0,3720.9,38.12841839]
[1753011375098,0.69993358,3721.3,3721.2,3.23730517]
[1753011375287,0.69993358,3721.3,3721.2,37.79900517]
[1753011375489,0.69993358,3721.3,3721.2,38.90045759]
[1753011375693,0.69993358,3721.3,3721.2,39.70582759]
[1753011376208,0.56579614,3721.3,3721.2,39.70582759]
[1753011376788,1.79579614,3721.3,3721.2,39.70582759]
[1753011377194,1.79579614,3721.3,3721.2,9.70582759]
[1753011377394,1.79579614,3721.3,3721.2,39.70582759]
[1753011378217,3.02579614,3721.3,3721.2,39.70582759]
[1753011379090,3.02579614,3721.3,3721.2,9.70582759]
[1753011379289,3.69,3722.6,3721.7,4.82714413]
[1753011379497,3.69,3722.6,3721.7,38.12224069]
[1753011379896,3.69,3722.6,3721.7,38.52133057]
[1753011380114,3.69,3722.6,3721.7,8.52133057]
[1753011380498,3.69,3722.6,3721.7,38.52133057]
[1753011380898,17.22,3721.8,3721.7,38.52133057]
[1753011381098,17.22,3721.8,3721.7,39.32670157]
[1753011381513,3.69,3722.6,3721.9,3.23679975]
[1753011381836,3.69,3722.6,3721.9,37.04315561]
[1753011382348,1.232,3722.0,3721.9,37.04315561]
[1753011382546,1.232,3722.0,3721.9,37.2436173]
[1753011382709,1.232,3722.0,3721.9,38.8338173]
[1753011383124,1.232,3722.0,3721.9,38.9674173]
[1753011383323,1.232,3722.0,3721.9,38.76695561]
[1753011383620,1.232,3722.0,3721.9,37.96059975]
[1753011383820,2.462,3722.0,3721.9,37.96059975]
[1753011384948,2.462,3722.0,3721.9,38.35968963]
[1753011385180,3.692,3722.0,3721.9,38.21695561]
[1753011385313,3.692,3722.0,3721.9,24.00490375]
[1753011385509,3.692,3722.0,3721.9,19.727904]
[1753011386008,3.692,3722.0,3721.9,23.97215955]
[1753011386333,3.692,3722.0,3721.9,39.24505211]
[1753011386535,4.922,3722.0,3721.9,39.24505211]
[1753011386922,4.922,3722.0,3721.9,16.41885594]
[1753011387325,4.922,3722.0,3721.9,20.24178994]
[1753011387511,4.922,3722.0,3721.9,21.88337494]
[1753011387838,4.922,3722.0,3721.9,3.20109994]
[1753011388039,6.152,3722.0,3721.9,22.63729694]
[1753011388237,6.152,3722.0,3721.9,23.15405294]
[1753011388437,6.152,3722.0,3721.9,23.15405494]
[1753011388638,6.152,3722.0,3721.9,22.03200394]
[1753011388980,6.5826,3722.0,3721.9,19.68165294]
[1753011389241,6.152,3722.0,3721.9,13.43868382]
[1753011389443,7.382,3722.0,3721.9,3.60018982]
[1753011389642,7.382,3722.0,3721.9,28.17126482]
[1753011390646,7.382,3722.0,3721.9,29.24859582]
[1753011390806,8.612,3722.0,3721.9,29.24859582]
[1753011391011,8.612,3722.0,3721.9,22.40469982]
[1753011391211,8.612,3722.0,3721.9,18.97058982]
[1753011391558,9.0426,3722.0,3721.9,13.19006794]
[1753011391750,11.80156318,3722.0,3721.9,13.19006794]
[1753011391923,13.37446318,3722.0,3721.9,5.99402894]
[1753011392248,14.60446318,3722.0,3721.9,0.20109994]
[1753011392453,14.60446318,3722.0,3721.6,0.805386]
[1753011392658,0.4306,3721.9,3721.7,6.139674]
[1753011392869,2.75896318,3721.8,3721.6,0.805386]
[1753011393174,2.75896318,3721.8,3721.7,8.474834]
[1753011393382,11.4149,3722.0,3721.8,13.095512]
[1753011393681,11.4149,3722.0,3721.7,0.40726598]
[1753011393682,1.23,3721.8,3721.7,0.80635586]
[1753011393885,1.23,3721.8,3721.7,33.80635586]
[1753011394233,1.23,3721.8,3721.7,38.00909999]
[1753011394882,2.46,3721.8,3721.7,33.80635586]
[1753011395036,5.64956318,3721.8,3721.7,8.54496]
[1753011395566,5.64956318,3721.8,3721.7,17.140917]
[1753011395878,5.65156318,3721.8,3721.7,3.504346]
[1753011396177,5.65156318,3721.8,3721.7,2.018582]
[1753011396381,6.88156318,3721.8,3721.6,0.20189845]
[1753011396596,3.692,3721.8,3721.7,3.0]
[1753011396867,3.692,3721.8,3721.7,21.053854]
[1753011397070,3.692,3721.8,3721.7,26.415513]
[1753011397226,3.692,3721.8,3721.7,26.105513]
[1753011397430,3.692,3721.8,3721.7,22.939478]
[1753011397631,4.922,3721.8,3721.7,21.971628]
[1753011398695,4.922,3721.8,3721.7,28.343541]
[1753011399328,6.152,3721.8,3721.7,28.343541]
[1753011399834,6.152,3721.8,3721.7,32.227976]
[1753011400244,6.152,3721.8,3721.7,27.280951]
[1753011400787,6.152,3721.8,3721.7,33.1336]
[1753011400991,7.382,3721.8,3721.7,33.1336]
[1753011401594,7.382,3721.8,3721.7,30.457344]
[1753011401748,7.382,3721.8,3721.7,35.82054413]
[1753011401948,7.382,3721.8,3721.7,37.78763401]
[1753011402148,7.382,3721.8,3721.7,37.98913401]
[1753011402388,8.612,3721.8,3721.7,37.98913401]
[1753011403794,9.842,3721.8,3721.7,37.98913401]
[1753011404087,9.842,3721.8,3721.7,34.7016]
[1753011405093,9.842,3721.8,3721.7,18.389869]
[1753011405094,11.5026,3721.8,3721.7,18.389869]
[1753011405292,11.5026,3721.8,3721.7,15.352726]
[1753011405493,11.5026,3721.8,3721.7,14.866211]
[1753011405697,11.072,3721.8,3721.7,8.079728]
[1753011405902,11.072,3721.8,3721.7,23.024268]
[1753011406053,11.072,3721.8,3721.7,26.024268]
[1753011406404,11.072,3721.8,3721.7,23.024268]
[1753011406568,12.302,3721.8,3721.7,26.024268]
[1753011406970,12.302,3721.8,3721.7,30.737884]
[1753011407887,13.532,3721.8,3721.7,30.737884]
[1753011408186,13.532,3721.8,3721.7,33.0]
[1753011408754,13.532,3721.8,3721.7,29.311829]
[1753011408993,13.532,3721.8,3721.7,27.916303]
[1753011409147,14.762,3721.8,3721.7,27.916303]
[1753011410198,14.762,3721.8,3721.7,3.0]
[1753011410397,14.762,3721.8,3721.7,31.345632]
[1753011410604,15.992,3721.8,3721.7,31.345632]
[1753011411162,15.992,3721.8,3721.7,25.848008]
[1753011411356,15.992,3721.8,3721.7,26.206962]
[1753011412055,17.222,3721.8,3721.7,26.206962]
[1753011412253,17.222,3721.8,3721.7,24.726341]
[1753011413298,18.8826,3721.8,3721.7,20.434634]
[1753011414045,18.8826,3721.8,3721.7,16.974308]
[1753011414510,18.8826,3721.8,3721.7,20.992338]
[1753011414707,20.1126,3721.8,3721.7,20.992338]
[1753011415004,20.1126,3721.8,3721.7,20.378698]
[1753011415404,20.1126,3721.8,3721.7,24.030432]
[1753011415717,20.1126,3721.8,3721.7,21.636366]
[1753011415922,20.1126,3721.8,3721.7,20.360958]
[1753011416212,21.3426,3721.8,3721.7,17.389337]
[1753011416382,21.3426,3721.8,3721.7,3.1336]
[1753011416580,23.93003654,3721.8,3721.7,10.786719]
[1753011416979,23.93003654,3721.8,3721.7,7.653119]
[1753011417192,23.93003654,3721.8,3721.7,6.831899]
[1753011417501,23.93003654,3721.8,3721.7,3.0]
[1753011417705,25.16003654,3721.8,3721.7,9.197738]
[1753011418105,24.72943654,3721.8,3721.7,9.197738]
[1753011418412,24.114,3721.8,3721.7,9.197738]
[1753011418598,24.114,3721.8,3721.7,13.712158]
[1753011418999,25.344,3721.8,3721.7,13.712158]
[1753011419207,25.344,3721.8,3721.7,11.441632]
[1753011420098,25.344,3721.8,3721.7,5.235561]
[1753011420286,0.1336,3721.7,3721.6,0.19785736]
[1753011420487,2.1056,3721.7,3721.6,4.21579536]
[1753011420686,2.1056,3721.7,3721.6,5.97545736]
[1753011421109,6.3726,3721.7,3721.6,0.19785736]
[1753011421425,9.13156318,3721.7,3721.6,0.19785736]
[1753011422022,10.36156318,3721.7,3721.6,0.19785736]
[1753011423297,11.59156318,3721.7,3721.6,0.19785736]
[1753011423745,7.32456318,3721.7,3721.6,0.19785736]
[1753011424049,1.5618,3721.6,3721.1,0.001]
[1753011424246,7.02596318,3721.5,3721.1,0.001]
[1753011424549,1.5618,3721.4,3721.1,0.001]
[1753011424724,1.5618,3721.2,3721.1,0.001]
[1753011425205,2.0108,3721.2,3721.1,0.001]
[1753011426094,2.0108,3721.2,3721.1,0.20350138]
[1753011426095,3.2408,3721.2,3721.1,0.20350138]
[1753011426297,4.14447632,3721.2,3721.1,0.001]
[1753011427325,2.46,3721.2,3721.1,0.001]
[1753011427536,4.4708,3721.2,3721.1,0.20315914]
[1753011428905,8.406,3721.2,3721.1,28.09918914]
[1753011429133,4.139,3721.2,3721.1,15.89100414]
[1753011429716,4.139,3721.2,3721.1,10.25424014]
[1753011429920,4.139,3721.2,3721.1,9.08135414]
[1753011430254,5.369,3721.2,3721.1,9.08135414]
[1753011430830,5.369,3721.2,3721.1,11.39437914]
[1753011431056,5.369,3721.2,3721.1,10.86260914]
[1753011431631,6.599,3721.2,3721.1,10.86260914]
[1753011431828,6.599,3721.2,3721.1,17.40768314]
[1753011432053,6.599,3721.2,3721.1,17.30768314]
[1753011432762,6.15,3721.2,3721.1,17.30768314]
[1753011432930,7.38,3721.2,3721.1,19.12083514]
[1753011433122,7.829,3721.2,3721.1,8.80389514]
[1753011433451,7.829,3721.2,3721.1,8.34168114]
[1753011433623,7.829,3721.2,3721.1,9.97188114]
[1753011433624,7.38,3721.2,3721.1,9.97188114]
[1753011433823,4.89174167,3721.2,3721.1,9.97188114]
[1753011434036,4.89174167,3721.2,3721.1,16.71558914]
[1753011434239,6.12174167,3721.2,3721.1,16.71558914]
[1753011435124,6.12174167,3721.2,3721.1,9.76554314]
[1753011435324,6.12174167,3721.2,3721.1,6.90599914]
[1753011435533,6.57074167,3721.2,3721.1,5.90114414]
[1753011435733,7.35174167,3721.2,3721.1,5.79049514]
[1753011435952,7.80074167,3721.2,3721.1,10.97333414]
[1753011436119,7.35174167,3721.2,3721.1,8.33566514]
[1753011436757,7.35174167,3721.2,3721.1,8.06012814]
[1753011436954,7.35174167,3721.2,3721.1,3.20315914]
[1753011437156,8.58174167,3721.2,3721.1,11.45541914]
[1753011437348,9.03074167,3721.2,3721.1,9.80471414]
[1753011437522,9.03074167,3721.2,3721.1,8.67860114]
[1753011437723,9.03074167,3721.2,3721.1,6.76123614]
[1753011437923,9.03074167,3721.2,3721.1,5.61491014]
[1753011438159,9.03074167,3721.2,3721.1,3.20315914]
[1753011438658,9.03074167,3721.2,3721.1,7.26724314]
[1753011438956,10.26074167,3721.2,3721.1,14.95395414]
[1753011439162,10.26074167,3721.2,3721.1,11.23089414]
[1753011440164,10.26074167,3721.2,3721.1,14.89842114]
[1753011440360,11.49074167,3721.2,3721.1,14.89842114]
[1753011440559,11.04174167,3721.2,3721.1,14.89842114]
[1753011441046,11.49074167,3721.2,3721.1,14.89842114]
[1753011441246,11.49074167,3721.2,3721.1,10.00551014]
[1753011441938,12.72074167,3721.2,3721.1,10.00551014]
[1753011442442,12.72074167,3721.2,3721.1,11.72189914]
[1753011443363,12.72074167,3721.2,3721.1,3.20315914]
[1753011443564,13.95074167,3721.2,3721.1,10.44389714]
[1753011443763,13.95074167,3721.2,3721.1,9.74252214]
[1753011444355,13.95074167,3721.2,3721.1,13.39444914]
[1753011444590,13.95074167,3721.2,3721.1,9.74252214]
[1753011444792,13.95074167,3721.2,3721.1,3.20315914]
[1753011444994,15.18074167,3721.2,3721.1,3.20315914]
[1753011446382,16.41074167,3721.2,3721.1,3.20315914]
[1753011447693,25.60791584,3721.2,3721.1,3.20315914]
[1753011449203,25.60791584,3721.2,3721.1,3.001]
[1753011449204,26.83791584,3721.2,3721.1,3.001]
[1753011449625,22.57291584,3721.2,3721.1,3.001]
[1753011449826,26.83691584,3721.2,3721.1,3.001]
[1753011450455,28.61691584,3721.2,3721.1,0.19832921]
[1753011450577,1.6494,3721.0,3720.8,0.001]
[1753011450774,8.67236318,3720.9,3720.8,0.001]
[1753011451077,2.1994,3720.5,3720.4,0.001]
[1753011451310,1.783,3720.4,3720.2,0.001]
[1753011451476,5.9134,3720.3,3720.2,0.001]
[1753011451817,6.3568,3720.3,3720.2,0.001]
[1753011451978,7.11548,3720.3,3720.2,0.001]
[1753011453014,7.11548,3720.3,3720.2,0.20439262]
[1753011453175,8.34548,3720.3,3720.2,0.001]
[1753011454574,9.57548,3720.3,3720.2,0.001]
[1753011454977,5.31148,3720.3,3720.2,0.001]
[1753011455177,9.57548,3720.3,3720.2,0.001]
[1753011455988,10.80548,3720.3,3720.2,0.001]
[1753011457216,6.54148,3720.3,3720.2,0.001]
[1753011457401,12.03648,3720.3,3720.2,0.001]
[1753011457590,12.03548,3720.3,3720.2,0.001]
[1753011457794,12.03548,3720.3,3720.2,0.19895701]
[1753011458112,12.03548,3720.3,3720.2,0.001]
[1753011458812,13.26548,3720.3,3720.2,0.001]
[1753011459781,13.81548,3720.3,3720.2,0.001]
[1753011459982,2.2174,3720.2,3719.9,0.20229447]
[1753011460286,4.165348,3720.2,3719.9,0.20229447]
[1753011460826,4.165348,3720.2,3719.7,0.001]
[1753011461636,5.395348,3720.2,3719.7,0.001]
[1753011462231,13.825348,3720.2,3719.9,0.20183128]
[1753011462389,9.561348,3720.2,3719.9,0.20183128]
[1753011462726,13.825348,3720.2,3719.9,0.20183128]
[1753011463023,15.055348,3720.2,3719.9,0.20183128]
[1753011464029,4.1274,3720.2,3719.9,0.20183128]
[1753011464330,8.0884,3720.2,3719.9,0.20183128]
[1753011464538,3.8244,3720.2,3719.9,0.20183128]
[1753011464895,3.69,3720.2,3720.1,1.94999656]
[1753011465096,3.69,3720.2,3720.1,5.55358644]
[1753011465429,3.69,3720.2,3720.1,11.80115444]
[1753011465620,4.92,3720.2,3720.1,11.80115444]
[1753011466036,4.92,3720.2,3720.1,11.97798001]
[1753011466328,4.92,3720.2,3720.1,27.14129301]
[1753011466911,6.15,3720.2,3720.1,27.14129301]
[1753011467298,6.15,3720.2,3720.1,28.08976001]
[1753011468441,7.38,3720.2,3720.1,27.51563901]
[1753011469437,7.38,3720.2,3720.1,35.93491201]
[1753011469636,8.61,3720.2,3720.1,35.93491201]
[1753011470001,8.61,3720.2,3720.1,39.17301179]
[1753011471030,9.84,3720.2,3720.1,39.17301179]
[1753011472344,11.07,3720.2,3720.1,39.17301179]
[1753011473450,11.07,3720.2,3720.1,9.17301179]
[1753011473611,12.3,3720.2,3720.1,39.17301179]
[1753011474257,12.28844564,3720.2,3720.1,39.17301179]
[1753011474910,13.51844564,3720.2,3720.1,39.17301179]
[1753011476233,14.74844564,3720.2,3720.1,39.17301179]
[1753011477768,15.97844564,3720.2,3720.1,39.17301179]
[1753011478329,15.97844564,3720.2,3720.1,9.17301179]
[1753011478530,15.97844564,3720.2,3720.1,38.79168622]
[1753011479763,17.20844564,3720.2,3720.1,38.79168622]
[1753011480638,17.20844564,3720.2,3720.1,8.79168622]
[1753011480854,17.20844564,3720.2,3720.1,38.79168622]
[1753011481159,18.43844564,3720.2,3720.1,38.79168622]
[1753011482472,19.66844564,3720.2,3720.1,39.17301179]
[1753011482844,19.66844564,3720.2,3720.1,9.17301179]
[1753011483046,19.66844564,3720.2,3720.1,39.17301179]
[1753011483432,18.36844564,3720.2,3720.1,39.17301179]
[1753011483938,19.59844564,3720.2,3720.1,39.17301179]
[1753011484868,19.59844564,3720.2,3720.1,9.17301179]
[1753011485167,18.16427221,3720.2,3720.1,39.17301179]
[1753011485369,16.70918286,3720.2,3720.1,47.04301179]
[1753011485532,12.54359518,3720.2,3720.1,48.38867148]
[1753011485738,2.28774817,3720.2,3720.1,47.84845479]
[1753011485958,1.87572531,3720.3,3720.2,37.88912752]
[1753011486138,1.87572531,3720.3,3720.2,38.96463953]
[1753011486339,1.74155188,3720.3,3720.2,40.62555191]
[1753011486540,1.23,3720.4,3720.3,9.23079773]
[1753011486743,0.002,3721.0,3720.9,7.88862183]
[1753011487070,0.002,3721.0,3720.9,38.66903728]
[1753011487272,0.002,3721.0,3720.9,39.00713728]
[1753011488454,1.232,3721.0,3720.9,39.00713728]
[1753011489674,1.232,3721.0,3720.9,9.00713728]
[1753011489875,2.462,3721.0,3720.9,39.00713728]
[1753011490873,2.462,3721.0,3720.9,14.848076]
[1753011491074,2.8981,3721.0,3720.9,14.042596]
[1753011491371,3.692,3721.0,3720.9,18.622223]
[1753011491575,3.692,3721.0,3720.9,23.64128]
[1753011491876,3.692,3721.0,3720.9,28.765181]
[1753011492079,3.692,3721.0,3720.9,33.126572]
[1753011492280,3.692,3721.0,3720.9,31.08268988]
[1753011492572,3.692,3721.0,3720.9,34.08268988]
[1753011492783,4.922,3721.0,3720.9,36.77021171]
[1753011493145,4.922,3721.0,3720.9,38.72853728]
[1753011493344,4.922,3721.0,3720.9,39.02363384]
[1753011494076,6.152,3721.0,3720.9,39.02363384]
[1753011494473,6.152,3721.0,3720.9,42.02363384]
[1753011494654,6.152,3721.0,3720.9,41.81913384]
[1753011495473,7.382,3721.0,3720.9,42.02363384]
[1753011496370,7.382,3721.0,3720.9,42.82905784]
[1753011496794,8.612,3721.0,3720.9,42.82905784]
[1753011497674,8.612,3721.0,3720.9,38.71061388]
[1753011497854,8.612,3721.0,3720.9,36.26061388]
[1753011498069,9.842,3721.0,3720.9,36.26061388]
[1753011498274,9.842,3721.0,3720.9,38.94813571]
[1753011498470,9.842,3721.0,3720.9,41.94813571]
[1753011499354,9.842,3721.0,3720.9,11.94813571]
[1753011499589,11.072,3721.0,3720.9,41.94813571]
[1753011500193,11.072,3721.0,3720.9,17.87856588]
[1753011500402,11.072,3721.0,3720.9,6.0]
[1753011500908,12.302,3721.0,3720.9,23.819952]
[1753011501510,12.302,3721.0,3720.9,31.273968]
[1753011501715,12.302,3721.0,3720.9,28.873968]
[1753011502006,12.302,3721.0,3720.9,25.354122]
[1753011502206,13.532,3721.0,3720.9,25.354122]
[1753011502706,13.532,3721.0,3720.9,28.51967845]
[1753011503279,13.532,3721.0,3720.9,28.65327845]
[1753011503685,14.762,3721.0,3720.9,32.00819545]
[1753011504097,14.762,3721.0,3720.9,31.76117845]
[1753011504328,14.762,3721.0,3720.9,30.91477345]
[1753011504471,14.762,3721.0,3720.9,28.79624545]
[1753011504671,14.762,3721.0,3720.9,31.32658445]
[1753011505171,15.992,3721.0,3720.9,31.32658445]
[1753011505371,15.992,3721.0,3720.9,30.60693445]
[1753011505599,15.992,3721.0,3720.9,6.91401545]
[1753011505806,15.992,3721.0,3720.9,29.09993445]
[1753011506099,15.992,3721.0,3720.9,28.54158745]
[1753011506405,15.992,3721.0,3720.9,28.16026188]
[1753011506603,17.222,3721.0,3720.9,28.16026188]
[1753011506816,17.222,3721.0,3720.9,29.01236888]
[1753011507105,17.222,3721.0,3720.9,28.21926188]
[1753011507803,17.222,3721.0,3720.9,32.03354988]
[1753011508005,18.452,3721.0,3720.9,32.03354988]
[1753011508310,18.452,3721.0,3720.9,29.26584988]
[1753011508805,18.452,3721.0,3720.9,35.08420288]
[1753011509373,19.682,3721.0,3720.9,35.08420288]
[1753011509709,19.682,3721.0,3720.9,30.74197888]
[1753011509891,19.682,3721.0,3720.9,30.65613288]
[1753011510286,19.682,3721.0,3720.9,30.257043]
[1753011510484,20.1115,3721.0,3720.9,27.593205]
[1753011510698,21.3415,3721.0,3720.9,15.172114]
[1753011510900,21.3415,3721.0,3720.9,14.952378]
[1753011511097,21.3415,3721.0,3720.9,13.038182]
[1753011512107,22.5715,3721.0,3720.9,17.3079]
[1753011512484,22.5715,3721.0,3720.9,16.03216]
[1753011512906,22.5715,3721.0,3720.9,6.1336]
[1753011513333,23.8015,3721.0,3720.9,6.1336]
[1753011513709,23.8015,3721.0,3720.9,15.572005]
[1753011514042,25.3801,3721.0,3720.9,11.083046]
[1753011514240,28.13906318,3721.0,3720.9,20.995104]
[1753011514538,25.3801,3721.0,3720.9,20.277915]
[1753011514839,26.6101,3721.0,3720.9,20.81060488]
[1753011515011,26.6101,3721.0,3720.9,30.42121188]
[1753011515213,26.6101,3721.0,3720.9,32.02611888]
[1753011515834,25.0315,3721.0,3720.9,31.12479588]
[1753011516034,26.2615,3721.0,3720.9,31.12506688]
[1753011516442,26.2615,3721.0,3720.9,28.88840088]
[1753011516741,26.2615,3721.0,3720.9,28.23372188]
[1753011517036,25.832,3721.0,3720.9,29.83611688]
[1753011517211,25.832,3721.0,3720.9,29.00926288]
[1753011517403,27.062,3721.0,3720.9,29.00926288]
[1753011517600,27.062,3721.0,3720.9,29.20673723]
[1753011517796,27.4915,3721.0,3720.9,29.20673723]
[1753011518106,29.0701,3721.0,3720.9,17.83832835]
[1753011518843,30.3001,3721.0,3720.9,17.83832835]
[1753011519039,30.3001,3721.0,3720.9,16.91873235]
[1753011519542,30.3001,3721.0,3720.9,13.96024035]
[1753011520101,31.5301,3721.0,3720.9,6.33107435]
[1753011521339,31.5301,3721.0,3720.9,11.82138235]
[1753011521538,32.7601,3721.0,3720.9,11.82138235]
[1753011522340,32.7601,3721.0,3720.9,27.07005435]
[1753011522542,32.7601,3721.0,3720.9,27.15748135]
[1753011522851,32.7601,3721.0,3720.9,25.65048135]
[1753011523029,33.9901,3721.0,3720.9,23.04048135]
[1753011523338,33.9901,3721.0,3720.9,24.79841135]
[1753011524239,33.9901,3721.0,3720.9,22.08841135]
[1753011524541,35.2201,3721.0,3720.9,24.69841135]
[1753011525235,35.2201,3721.0,3720.9,19.28508435]
[1753011525438,35.2201,3721.0,3720.9,6.33107435]
[1753011525934,36.4501,3721.0,3720.9,6.33107435]
[1753011526303,36.4501,3721.0,3720.9,23.26247535]
[1753011526506,34.442,3721.0,3720.9,25.6365288]
[1753011526700,34.8715,3721.0,3720.9,25.6365288]
[1753011527443,34.8715,3721.0,3720.9,26.6664728]
[1753011527745,36.83874139,3721.0,3720.9,12.80720335]
[1753011527922,36.83874139,3721.0,3720.9,11.82116535]
[1753011528545,36.83874139,3721.0,3720.9,11.84274535]
[1753011528846,36.83874139,3721.0,3720.9,11.31497235]
[1753011529048,38.06874139,3721.0,3720.9,11.31497235]
[1753011529619,38.06874139,3721.0,3720.9,22.90948935]
[1753011529825,37.3315,3721.0,3720.9,22.90948935]
[1753011530215,37.3315,3721.0,3720.9,22.02626335]
[1753011530415,38.5615,3721.0,3720.9,21.17413135]
[1753011530847,38.5615,3721.0,3720.9,12.85563735]
[1753011531229,38.5615,3721.0,3720.9,12.32793735]
[1753011531747,38.5615,3721.0,3720.9,11.70293735]
[1753011532049,39.7915,3721.0,3720.9,11.70293735]
[1753011532250,39.7915,3721.0,3720.9,11.18376835]
[1753011532450,44.20326318,3721.0,3720.9,6.19747435]
[1753011532659,44.20326318,3721.0,3720.9,3.19747435]
[1753011533446,45.43326318,3721.0,3720.9,3.19747435]
[1753011534954,50.90726318,3721.0,3720.9,3.19747435]
[1753011535334,46.66326318,3721.0,3720.9,3.19747435]
[1753011535537,50.90726318,3721.0,3720.9,3.19747435]
[1753011536161,46.66326318,3721.0,3720.9,3.19747435]
[1753011536351,52.13726318,3721.0,3720.9,3.19747435]
[1753011537768,53.36726318,3721.0,3720.9,3.19747435]
[1753011539395,54.59726318,3721.0,3720.9,3.19747435]
[1753011540486,54.59726318,3721.0,3720.9,13.96679435]
[1753011540487,45.9438,3721.0,3720.9,13.96679435]
[1753011540635,46.742,3721.0,3720.9,6.97430647]
[1753011540941,46.742,3721.0,3720.9,30.09426126]
[1753011541468,46.742,3721.0,3720.9,29.69560235]
[1753011541633,46.742,3721.0,3720.9,36.19747435]
[1753011541834,46.742,3721.0,3720.9,38.88499618]
[1753011542070,47.972,3721.0,3720.9,40.16142486]
[1753011542430,47.972,3721.0,3720.9,39.18009274]
[1753011542634,48.4038,3721.0,3720.9,12.27336735]
[1753011542868,48.4038,3721.0,3720.9,10.63121235]
[1753011543079,50.73096318,3721.0,3720.9,8.76361235]
[1753011543264,48.4038,3721.0,3720.9,8.76361235]
[1753011543469,49.6338,3721.0,3720.9,8.76361235]
[1753011543791,49.6338,3721.0,3720.9,15.47692635]
[1753011544091,49.6338,3721.0,3720.9,14.52602035]
[1753011544428,49.6338,3721.0,3720.9,6.19747435]
[1753011544601,51.19067505,3721.0,3720.9,8.79073435]
[1753011544749,52.42067505,3721.0,3720.9,8.79190435]
[1753011545679,50.8638,3721.0,3720.9,6.19747435]
[1753011546378,52.0938,3721.0,3720.9,6.19747435]
[1753011546792,53.6335,3721.0,3720.9,3.19747435]
[1753011546996,57.8745,3721.0,3720.9,3.19747435]
[1753011547805,53.6335,3721.0,3720.9,3.19747435]
[1753011548006,61.86346318,3721.0,3720.9,3.19747435]
[1753011549001,61.86346318,3721.0,3720.9,0.08743094]
[1753011549194,1.534,3720.9,3720.4,0.001]
[1753011549412,1.534,3720.7,3720.4,0.001]
[1753011549618,1.534,3720.5,3720.4,0.001]
[1753011549819,2.1115,3720.5,3720.4,0.001]
[1753011550022,2.5433,3720.5,3720.4,0.001]
[1753011550717,3.7733,3720.5,3720.4,0.001]
[1753011552162,5.0033,3720.5,3720.4,0.20029106]
[1753011552369,5.0033,3720.5,3720.4,0.001]
[1753011553496,6.2333,3720.5,3720.4,0.001]
[1753011554773,7.4633,3720.5,3720.4,0.001]
[1753011555497,7.4633,3720.5,3720.4,0.19988841]
[1753011556010,8.0133,3720.5,3720.4,0.19988841]
[1753011556311,9.2433,3720.5,3720.4,0.001]
[1753011556686,13.4843,3720.5,3720.4,0.001]
[1753011557010,8.6774,3720.5,3720.4,0.001]
[1753011557216,8.6774,3720.5,3720.4,0.19864397]